lending/lending_fUSD_20240112
["ID","MTS","AMOUNT","RATE_DAILY","PERIOD"]
[311342948,1705065087193,-1076.15,0.00023957,2]
[311342949,1705065087204,-500.0,0.00023957,2]
[311342950,1705065087213,-1891.13,0.00023957,2]
[311342951,1705065087222,-500.0,0.00023957,2]
[311342952,1705065087232,-2556.24,0.00023957,2]
[311342953,1705065087242,-750.14,0.00023957,2]
[311342954,1705065087254,-500.0,0.00023957,2]
[311342955,1705065087265,-2721.6,0.00023957,2]
[311342956,1705065087274,-500.0,0.00023957,2]
[311342957,1705065087283,-884.19,0.00023957,2]
[311342958,1705065087292,-2018.21,0.00023957,2]
[311342959,1705065087302,-2134.94,0.00023957,2]
[311342960,1705065087312,-500.0,0.00023957,2]
[311342961,1705065087324,-1493.07,0.00023957,2]
[311342962,1705065087334,-1084.3,0.00023957,2]
[311342963,1705065087344,-612.02,0.00023957,2]
[311342964,1705065087353,-500.0,0.00023957,2]
[311342965,1705065087363,-5673.19,0.00023957,2]
[311342966,1705065087373,-500.0,0.00023957,2]
[311342967,1705065087383,-1028.9,0.00023957,2]
[311342968,1705065087392,-2233.34,0.00023957,2]
[311342969,1705065087402,-710.28,0.00023957,2]
[311342970,1705065087411,-500.0,0.00023957,2]
[311342971,1705065087420,-500.0,0.0002396,2]
[311342972,1705065087430,-500.0,0.0002396,2]
[311342973,1705065087440,-500.0,0.0002396,2]
[311342974,1705065087450,-500.0,0.0002396,2]
[311342975,1705065087461,-500.0,0.0002396,2]
[311342976,1705065087470,-1431.33,0.0002396,2]
[311342977,1705065087480,-500.0,0.0002396,2]
[311342978,1705065087489,-546.15697099,0.0002396,2]
[311342979,1705065087501,-500.0,0.0002396,2]
[311342980,1705065087510,-500.0,0.0002396,2]
[311342981,1705065087519,-271.6,0.0002396,2]
[311342982,1705065087528,-500.0,0.0002396,2]
[311342983,1705065087539,-500.0,0.0002396,2]
[311342984,1705065087548,-500.0,0.0002396,2]
[311342985,1705065087559,-570.86,0.0002396,2]
[311342986,1705065087570,-500.0,0.0002396,2]
[311342987,1705065087582,-500.0,0.0002396,2]
[311342988,1705065087594,-500.0,0.0002396,2]
[311342989,1705065087604,-500.0,0.0002396,2]
[311342990,1705065087613,-500.0,0.0002396,2]
[311342991,1705065087623,-500.0,0.0002396,2]
[311342992,1705065087632,-414.16,0.0002396,2]
[311342993,1705065087642,-526.28,0.0002396,2]
[311342994,1705065087652,-500.0,0.0002396,2]
[311342995,1705065087662,-500.0,0.0002396,2]
[311342996,1705065087672,-500.0,0.0002396,2]
[311342997,1705065087682,-500.0,0.0002396,2]
[311342998,1705065087691,-500.0,0.0002396,2]
[311342999,1705065087701,-500.0,0.0002396,2]
[311343000,1705065087712,-500.0,0.0002396,2]
[311343001,1705065087722,-500.0,0.0002396,2]
[311343002,1705065087732,-276.18,0.0002396,2]
[311343003,1705065087741,-269.8,0.0002396,2]
[311343004,1705065087751,-500.0,0.0002396,2]
[311343005,1705065087761,-500.0,0.0002396,2]
[311343006,1705065087771,-500.0,0.0002396,2]
[311343007,1705065087781,-500.0,0.0002396,2]
[311343008,1705065087791,-543.44,0.0002396,2]
[311343009,1705065087800,-500.0,0.0002396,2]
[311343010,1705065087811,-500.0,0.0002396,2]
[311343011,1705065087825,-500.0,0.0002396,2]
[311343012,1705065087834,-500.0,0.0002396,2]
[311343013,1705065087844,-500.0,0.0002396,2]
[311343014,1705065087855,-500.0,0.0002396,2]
[311343015,1705065087865,-500.0,0.0002396,2]
[311343016,1705065087875,-500.0,0.0002396,2]
[311343017,1705065087885,-500.0,0.0002396,2]
[311343018,1705065087895,-553.95,0.0002396,2]
[311343019,1705065087906,-500.0,0.0002396,2]
[311343020,1705065087917,-500.0,0.0002396,2]
[311343021,1705065087926,-516.33,0.0002396,2]
[311343022,1705065087936,-500.0,0.0002396,2]
[311343023,1705065087946,-586.6,0.0002396,2]
[311343024,1705065087958,-500.0,0.0002396,2]
[311343025,1705065087968,-500.0,0.0002396,2]
[311343026,1705065087980,-500.0,0.0002396,2]
[311343027,1705065087991,-500.0,0.0002396,2]
[311343028,1705065088002,-500.0,0.0002396,2]
[311343029,1705065088011,-500.0,0.0002396,2]
[311343030,1705065088020,-500.0,0.0002396,2]
[311343031,1705065088030,-515.42,0.0002396,2]
[311343032,1705065088042,-500.0,0.0002396,2]
[311343033,1705065088052,-500.0,0.0002396,2]
[311343034,1705065088062,-500.0,0.0002396,2]
[311343035,1705065088072,-500.0,0.0002396,2]
[311343036,1705065088081,-592.8,0.0002396,2]
[311343037,1705065088090,-500.0,0.0002396,2]
[311343038,1705065088100,-500.0,0.0002396,2]
[311343039,1705065088109,-242.36,0.0002396,2]
[311343040,1705065088119,-500.0,0.0002396,2]
[311343041,1705065088128,-500.0,0.0002396,2]
[311343042,1705065088137,-500.0,0.0002396,2]
[311343043,1705065088147,-500.0,0.0002396,2]
[311343044,1705065088157,-309.29,0.0002396,2]
[311343045,1705065088166,-500.0,0.0002396,2]
[311343046,1705065088176,-500.0,0.0002396,2]
[311343047,1705065088185,-500.0,0.0002396,2]
[311343048,1705065088195,-500.0,0.0002396,2]
[311343049,1705065088206,-357.31952913,0.0002396,2]
[311343050,1705065088216,-500.0,0.0002396,2]
[311343051,1705065088228,-500.0,0.0002396,2]
[311343052,1705065088240,-500.0,0.0002396,2]
[311343053,1705065088249,-214.20364348,0.0002396,2]
[311343054,1705065088259,-232.57,0.0002396,2]
[311343055,1705065088269,-150.0,0.0002396,2]
[311343056,1705065088279,-500.0,0.0002396,2]
[311343057,1705065088289,-500.0,0.0002396,2]
[311343058,1705065088301,-500.0,0.0002396,2]
[311343059,1705065088311,-500.0,0.0002396,2]
[311343060,1705065088321,-500.0,0.0002396,2]
[311343061,1705065088333,-500.0,0.0002396,2]
[311343062,1705065088342,-500.0,0.0002396,2]
[311343063,1705065088352,-636.19996802,0.0002396,2]
[311343064,1705065088363,-500.0,0.0002396,2]
[311343065,1705065088373,-500.0,0.0002396,2]
[311343066,1705065088383,-500.0,0.0002396,2]
[311343067,1705065088394,-500.0,0.0002396,2]
[311343068,1705065088404,-500.0,0.0002396,2]
[311343069,1705065088413,-500.0,0.0002396,2]
[311343070,1705065088423,-500.0,0.0002396,2]
[311343071,1705065088433,-500.0,0.0002396,2]
[311343072,1705065088443,-500.0,0.0002396,2]
[311343073,1705065088453,-500.0,0.0002396,2]
[311343074,1705065088463,-639.38,0.0002396,2]
[311343075,1705065088473,-500.0,0.0002396,2]
[311343076,1705065088483,-500.0,0.0002396,2]
[311343077,1705065088493,-500.0,0.0002396,2]
[311343078,1705065088503,-641.42,0.0002396,2]
[311343079,1705065088513,-572.59,0.0002396,2]
[311343080,1705065088523,-460.93693126,0.0002396,2]
[311343081,1705065088533,-500.0,0.0002396,2]
[311343082,1705065088542,-500.0,0.0002396,2]
[311343083,1705065088551,-500.0,0.0002396,2]
[311343084,1705065088561,-444.64,0.0002396,2]
[311343085,1705065088571,-535.83,0.0002396,2]
[311343086,1705065088581,-608.62,0.0002396,2]
[311343087,1705065088591,-500.0,0.0002396,2]
[311343088,1705065088600,-500.0,0.0002396,2]
[311343089,1705065088610,-500.0,0.0002396,2]
[311343090,1705065088621,-500.0,0.0002396,2]
[311343091,1705065088631,-500.0,0.0002396,2]
[311343092,1705065088641,-500.0,0.0002396,2]
[311343093,1705065088651,-629.1,0.0002396,2]
[311343094,1705065088660,-500.0,0.0002396,2]
[311343095,1705065088670,-500.0,0.0002396,2]
[311343096,1705065088680,-500.0,0.0002396,2]
[311343097,1705065088690,-611.41,0.0002396,2]
[311343098,1705065088699,-500.0,0.0002396,2]
[311343099,1705065088710,-500.0,0.0002396,2]
[311343100,1705065088720,-522.58,0.0002396,2]
[311343101,1705065088730,-500.0,0.0002396,2]
[311343102,1705065088739,-1479.42,0.0002396,2]
[311343103,1705065088750,-500.0,0.0002396,2]
[311343104,1705065088759,-1130.95,0.0002396,2]
[311343105,1705065088769,-917.05,0.0002396,2]
[311343106,1705065088779,-3574.26,0.0002396,2]
[311343107,1705065088789,-500.0,0.0002396,2]
[311343108,1705065088798,-500.0,0.0002396,2]
[311343109,1705065088808,-500.0,0.0002396,2]
[311343110,1705065088819,-640.27,0.0002396,2]
[311343111,1705065088831,-500.0,0.0002396,2]
[311343112,1705065088842,-526.02,0.0002396,2]
[311343113,1705065088851,-500.0,0.0002396,2]
[311343114,1705065088862,-500.0,0.0002396,2]
[311343115,1705065088872,-500.0,0.0002396,2]
[311343116,1705065088881,-500.0,0.0002396,2]
[311343117,1705065088891,-500.0,0.0002396,2]
[311343118,1705065088901,-514.03,0.0002396,2]
[311343119,1705065088912,-500.0,0.0002396,2]
[311343120,1705065088923,-500.0,0.0002396,2]
[311343121,1705065088933,-500.0,0.0002396,2]
[311343122,1705065088943,-500.0,0.0002396,2]
[311343123,1705065088954,-1199.16,0.0002396,2]
[311343124,1705065088966,-500.0,0.0002396,2]
[311343125,1705065088977,-500.0,0.0002396,2]
[311343126,1705065088987,-500.0,0.0002396,2]
[311343127,1705065088997,-500.0,0.0002396,2]
[311343128,1705065089009,-809.87,0.0002396,2]
[311343129,1705065089019,-500.0,0.0002396,2]
[311343130,1705065089029,-500.0,0.0002396,2]
[311343131,1705065089040,-826.13,0.0002396,2]
[311343132,1705065089050,-500.0,0.0002396,2]
[311343133,1705065089060,-629.29,0.0002396,2]
[311343134,1705065089070,-2053.17,0.0002396,2]
[311343135,1705065089079,-500.0,0.0002396,2]
[311343136,1705065089088,-500.0,0.0002396,2]
[311343137,1705065089098,-500.0,0.0002396,2]
[311343138,1705065089108,-500.0,0.0002396,2]
[311343139,1705065089118,-713.26,0.0002396,2]
[311343140,1705065089128,-896.29,0.0002396,2]
[311343141,1705065089138,-500.0,0.0002396,2]
[311343142,1705065089148,-385.73,0.0002396,2]
[311343143,1705065089158,-500.0,0.0002396,2]
[311343144,1705065089167,-1112.52,0.0002396,2]
[311343145,1705065089177,-500.0,0.0002396,2]
[311343146,1705065089188,-1157.27,0.0002396,2]
[311343147,1705065089199,-500.0,0.0002396,2]
[311343148,1705065089209,-574.98,0.0002396,2]
[311343149,1705065089219,-500.0,0.0002396,2]
[311343150,1705065089229,-597.76,0.0002396,2]
[311343151,1705065089238,-550.64,0.0002396,2]
[311343152,1705065089248,-500.0,0.0002396,2]
[311343153,1705065089257,-500.0,0.0002396,2]
[311343154,1705065089267,-500.0,0.0002396,2]
[311343155,1705065089277,-1688.31,0.0002396,2]
[311343156,1705065089287,-500.0,0.0002396,2]
[311343157,1705065089297,-500.0,0.0002396,2]
[311343158,1705065089307,-500.0,0.0002396,2]
[311343159,1705065089316,-500.0,0.0002396,2]
[311343160,1705065089326,-170.48,0.0002396,2]
[311343161,1705065089336,-500.0,0.0002396,2]
[311343162,1705065089347,-974.33,0.0002396,2]
[311343163,1705065089356,-500.0,0.0002396,2]
[311343164,1705065089367,-500.0,0.0002396,2]
[311343165,1705065089378,-500.0,0.0002396,2]
[311343166,1705065089387,-500.0,0.0002396,2]
[311343167,1705065089397,-500.0,0.0002396,2]
[311343168,1705065089407,-644.03,0.0002396,2]
[311343169,1705065089417,-500.0,0.0002396,2]
[311343170,1705065089427,-500.0,0.0002396,2]
[311343171,1705065089437,-500.0,0.0002396,2]
[311343172,1705065089447,-500.0,0.0002396,2]
[311343173,1705065089460,-500.0,0.0002396,2]
[311343174,1705065089470,-791.75,0.0002396,2]
[311343175,1705065089480,-500.0,0.0002396,2]
[311343176,1705065089490,-500.0,0.0002396,2]
[311343177,1705065089500,-2017.32,0.0002396,2]
[311343178,1705065089510,-562.53,0.0002396,2]
[311343179,1705065089520,-535.6,0.0002396,2]
[311343180,1705065089530,-500.0,0.0002396,2]
[311343181,1705065089540,-705.71,0.0002396,2]
[311343182,1705065089550,-500.0,0.0002396,2]
[311343183,1705065089560,-655.0,0.0002396,2]
[311343184,1705065089570,-500.0,0.0002396,2]
[311343185,1705065089580,-500.0,0.0002396,2]
[311343186,1705065089589,-500.0,0.0002396,2]
[311343187,1705065089599,-1374.63,0.0002396,2]
[311343188,1705065089610,-196.4,0.0002396,2]
[311343189,1705065089620,-1550.52,0.0002396,2]
[311343190,1705065089631,-500.0,0.0002396,2]
[311343191,1705065089641,-350.69,0.0002396,2]
[311343192,1705065089651,-1473.58,0.0002396,2]
[311343193,1705065089662,-500.0,0.0002396,2]
[311343194,1705065089672,-805.25,0.0002396,2]
[311343195,1705065089682,-511.59676288,0.0002396,2]
[311343196,1705065089692,-500.0,0.0002396,2]
[311343197,1705065089702,-500.0,0.0002396,2]
[311343198,1705065089714,-1112.34,0.0002396,2]
[311343199,1705065089724,-943.87,0.0002396,2]
[311343200,1705065089734,-250.0,0.0002396,2]
[311343201,1705065089744,-500.0,0.0002396,2]
[311343202,1705065089756,-500.0,0.0002396,2]
[311343203,1705065089766,-500.0,0.0002396,2]
[311343204,1705065089777,-222.72,0.0002396,2]
[311343205,1705065089787,-565.25,0.0002396,2]
[311343206,1705065089798,-500.0,0.0002396,2]
[311343207,1705065089808,-500.0,0.0002396,2]
[311343208,1705065089822,-500.0,0.0002396,2]
[311343209,1705065090068,-500.0,0.0002396,2]
[311343210,1705065090081,-500.0,0.0002396,2]
[311343211,1705065090091,-3783.76,0.0002396,2]
[311343212,1705065090101,-376.85,0.0002396,2]
[311343213,1705065090111,-500.0,0.0002396,2]
[311343214,1705065090120,-613.18,0.0002396,2]
[311343215,1705065090130,-500.0,0.0002396,2]
[311343216,1705065090140,-500.0,0.0002396,2]
[311343217,1705065090150,-338.14,0.0002396,2]
[311343218,1705065090161,-500.0,0.00023961,2]
[311343219,1705065090171,-500.0,0.00023961,2]
[311343220,1705065090180,-500.0,0.00023961,2]
[311343221,1705065090190,-561.95,0.00023961,2]
[311343222,1705065090199,-500.0,0.00023961,2]
[311343223,1705065090209,-306.34765378,0.00023961,2]
[311343224,1705065090218,-500.0,0.00023961,2]
[311343225,1705065090228,-509.18,0.00023961,2]
[311343226,1705065090238,-500.0,0.00023961,2]
[311343227,1705065090247,-646.87027295,0.00023961,2]
[311343228,1705065090256,-500.0,0.00023961,2]
[311343229,1705065090266,-527.36,0.00023961,2]
[311343230,1705065090275,-429.94,0.00023961,2]
[311343231,1705065090285,-500.0,0.00023961,2]
[311343232,1705065090294,-500.0,0.00023961,2]
[311343233,1705065090303,-507.71,0.00023961,2]
[311343234,1705065090313,-500.0,0.00023961,2]
[311343235,1705065090322,-500.0,0.00023961,2]
[311343236,1705065090331,-421.81185912,0.00023961,2]
[311343237,1705065090341,-500.0,0.00023961,2]
[311343238,1705065090350,-500.0,0.00023961,2]
[311343239,1705065090360,-500.0,0.00023961,2]
[311343240,1705065090369,-500.0,0.00023961,2]
[311343241,1705065090378,-500.0,0.00023961,2]
[311343242,1705065090388,-500.0,0.00023961,2]
[311343243,1705065090397,-511.53,0.00023961,2]
[311343244,1705065090407,-500.0,0.00023961,2]
[311343245,1705065090416,-500.0,0.00023961,2]
[311343246,1705065090428,-500.0,0.00023961,2]
[311343247,1705065090439,-500.0,0.00023961,2]
[311343248,1705065090449,-500.0,0.00023961,2]
[311343249,1705065090460,-592.66,0.00023961,2]
[311343250,1705065090470,-500.0,0.00023961,2]
[311343251,1705065090481,-500.0,0.00023961,2]
[311343252,1705065090491,-500.0,0.00023961,2]
[311343253,1705065090501,-152.76721253,0.00023961,2]
[311343254,1705065090510,-500.0,0.00023961,2]
[311343255,1705065090520,-500.0,0.00023961,2]
[311343256,1705065090531,-500.0,0.00023961,2]
[311343257,1705065090541,-500.0,0.00023961,2]
[311343258,1705065090552,-500.0,0.00023961,2]
[311343259,1705065090561,-189.40091171,0.00023961,2]
[311343260,1705065090572,-526.11570495,0.00023961,2]
[311343261,1705065090582,-500.0,0.00023961,2]
[311343262,1705065090591,-500.0,0.00023961,2]
[311343263,1705065090601,-500.0,0.00023961,2]
[311343264,1705065090611,-500.0,0.00023961,2]
[311343265,1705065090621,-500.0,0.00023961,2]
[311343266,1705065090631,-500.0,0.00023961,2]
[311343267,1705065090640,-500.0,0.00023961,2]
[311343268,1705065090650,-236.7,0.00023961,2]
[311343269,1705065090659,-500.0,0.00023961,2]
[311343270,1705065090669,-500.0,0.00023961,2]
[311343271,1705065090679,-500.0,0.00023961,2]
[311343272,1705065090689,-500.0,0.00023961,2]
[311343273,1705065090699,-421.7528449,0.00023961,2]
[311343274,1705065090710,-557.22,0.00023961,2]
[311343275,1705065090720,-500.0,0.00023961,2]
[311343276,1705065090730,-500.0,0.00023961,2]
[311343277,1705065090741,-500.0,0.00023961,2]
[311343278,1705065090750,-500.0,0.00023961,2]
[311343279,1705065090760,-500.0,0.00023961,2]
[311343280,1705065090771,-500.0,0.00023961,2]
[311343281,1705065090781,-500.0,0.00023961,2]
[311343282,1705065090790,-500.0,0.00023961,2]
[311343283,1705065090800,-268.86877192,0.00023961,2]
[311343284,1705065090809,-506.67,0.00023961,2]
[311343285,1705065090819,-555.88,0.00023961,2]
[311343286,1705065090829,-500.0,0.00023961,2]
[311343287,1705065090838,-500.0,0.00023961,2]
[311343288,1705065090848,-500.0,0.00023961,2]
[311343289,1705065090857,-500.0,0.00023961,2]
[311343290,1705065090867,-500.0,0.00023961,2]
[311343291,1705065090876,-500.0,0.00023961,2]
[311343292,1705065090886,-500.0,0.00023961,2]
[311343293,1705065090896,-253.72,0.00023961,2]
[311343294,1705065090905,-568.35369284,0.00023961,2]
[311343295,1705065090915,-500.0,0.00023961,2]
[311343296,1705065090924,-500.0,0.00023961,2]
[311343297,1705065090933,-500.0,0.00023961,2]
[311343298,1705065090942,-500.0,0.00023961,2]
[311343299,1705065090951,-353.62,0.00023961,2]
[311343300,1705065090962,-220.54400051,0.00023961,2]
[311343301,1705065090971,-211.22,0.00023961,2]
[311343302,1705065090981,-500.0,0.00023961,2]
[311343303,1705065090990,-710.1,0.00023961,2]
[311343304,1705065091000,-500.0,0.00023961,2]
[311343305,1705065091011,-500.0,0.00023961,2]
[311343306,1705065091021,-500.0,0.00023961,2]
[311343307,1705065091030,-500.0,0.00023961,2]
[311343308,1705065091040,-500.0,0.00023961,2]
[311343309,1705065091050,-500.0,0.00023961,2]
[311343310,1705065091061,-500.0,0.00023961,2]
[311343311,1705065091070,-500.0,0.00023961,2]
[311343312,1705065091080,-500.0,0.00023961,2]
[311343313,1705065091090,-500.0,0.00023961,2]
[311343314,1705065091099,-1022.92,0.00023961,2]
[311343315,1705065091110,-500.0,0.00023961,2]
[311343316,1705065091120,-500.0,0.00023961,2]
[311343317,1705065091130,-1065.11,0.00023961,2]
[311343318,1705065091140,-500.0,0.00023961,2]
[311343319,1705065091149,-973.85,0.00023961,2]
[311343320,1705065091160,-596.64,0.00023961,2]
[311343321,1705065091170,-1316.49,0.00023961,2]
[311343322,1705065091180,-565.15,0.00023961,2]
[311343323,1705065091189,-4908.84,0.00023961,2]
[311343324,1705065091199,-567.77,0.00023961,2]
[311343325,1705065091209,-500.0,0.00023961,2]
[311343326,1705065091218,-1555.67,0.00023961,2]
[311343327,1705065091227,-1400.6,0.00023961,5]
[311343328,1705065091237,-1433.76,0.00023961,2]
[311343329,1705065091247,-1359.51,0.00023961,2]
[311343330,1705065091257,-647.67,0.00023961,2]
[311343331,1705065091267,-756.74,0.00023961,2]
[311343332,1705065091277,-1876.2,0.00023961,2]
[311343333,1705065091287,-1309.3,0.00023961,2]
[311343334,1705065091297,-937.63,0.00023961,2]
[311343335,1705065091306,-2066.36,0.00023961,2]
[311343336,1705065091316,-3090.41,0.00023961,2]
[311343337,1705065091325,-660.9,0.00023961,2]
[311343338,1705065091335,-500.0,0.00023961,2]
[311343339,1705065091344,-500.0,0.00023961,2]
[311343340,1705065091355,-500.0,0.00023961,2]
[311343341,1705065091365,-500.0,0.00023961,2]
[311343342,1705065091375,-1935.88,0.00023961,2]
[311343343,1705065091385,-505.19,0.00023961,2]
[311343344,1705065091395,-527.44,0.00023961,2]
[311343345,1705065091405,-500.0,0.00023961,2]
[311343346,1705065091415,-500.0,0.00023961,2]
[311343347,1705065091426,-1258.22,0.00023961,2]
[311343348,1705065091436,-500.0,0.00023961,2]
[311343349,1705065091446,-500.0,0.00023961,2]
[311343350,1705065091456,-500.0,0.00023961,2]
[311343351,1705065091466,-620.89,0.00023961,2]
[311343352,1705065091476,-500.0,0.00023961,2]
[311343353,1705065091486,-993.03,0.00023961,2]
[311343354,1705065091496,-724.59,0.00023961,2]
[311343355,1705065091506,-200.89664823,0.00024,2]
[311343356,1705065091516,-500.0,0.00024021,2]
[311343357,1705065091525,-500.0,0.00024085,2]
[311343358,1705065091535,-160.12,0.00024095,2]
[311343359,1705065091544,-1095.03,0.00024231,2]
[311343360,1705065091554,-2336.53,0.00024231,5]
[311343361,1705065091564,-660.44,0.00024231,2]
[311343362,1705065091573,-4983.08,0.00024231,2]
[311343363,1705065091583,-500.0,0.00024231,2]
[311343364,1705065091593,-1968.89,0.00024231,2]
[311343365,1705065091603,-6835.31,0.00024231,2]
[311343366,1705065091612,-14321.2,0.00024231,2]
[311343367,1705065091622,-549.3,0.00024231,2]
[311343368,1705065091632,-619.15,0.00024231,2]
[311343369,1705065091642,-1403.82,0.00024231,2]
[311343370,1705065091651,-722.98,0.00024231,2]
[311343371,1705065091661,-500.0,0.00024231,2]
[311343372,1705065091670,-607.61,0.00024231,2]
[311343373,1705065091680,-510.07,0.00024231,2]
[311343374,1705065091690,-749.86,0.00024231,2]
[311343375,1705065091699,-3048.94,0.00024231,2]
[311343376,1705065091709,-500.0,0.00024231,2]
[311343377,1705065091720,-500.0,0.00024231,2]
[311343378,1705065091731,-1294.29,0.00024231,2]
[311343379,1705065091741,-984.37,0.00024231,2]
[311343380,1705065091751,-675.45,0.00024231,2]
[311343381,1705065091761,-1709.12,0.00024231,2]
[311343382,1705065091770,-372.08,0.00024231,2]
[311343383,1705065091781,-500.0,0.00024231,2]
[311343384,1705065091791,-937.07,0.00024231,2]
[311343385,1705065091801,-2370.13,0.00024231,2]
[311343386,1705065091811,-500.0,0.00024231,2]
[311343387,1705065091823,-793.03,0.00024231,2]
[311343388,1705065091834,-786.71,0.00024231,2]
[311343389,1705065091844,-1074.66,0.00024231,2]
[311343390,1705065091854,-2000.06,0.00024231,2]
[311343391,1705065091865,-3928.94,0.00024231,2]
[311343392,1705065091875,-1033.75,0.00024231,2]
[311343393,1705065091885,-874.55,0.00024231,2]
[311343394,1705065091895,-1304.48,0.00024231,2]
[311343395,1705065091905,-500.0,0.00024231,2]
[311343396,1705065091916,-6963.0,0.00024231,2]
[311343397,1705065091926,-1048.12,0.00024231,2]
[311343398,1705065091936,-500.0,0.00024231,2]
[311343399,1705065091946,-500.0,0.00024231,2]
[311343400,1705065091956,-381.31,0.00024231,2]
[311343401,1705065091967,-1205.23,0.00024231,2]
[311343402,1705065091977,-500.0,0.00024231,2]
[311343403,1705065091988,-736.05,0.00024231,2]
[311343404,1705065091998,-9796.43,0.00024231,2]
[311343405,1705065092007,-500.0,0.00024231,2]
[311343406,1705065092017,-2056.42,0.00024231,2]
[311343407,1705065092027,-500.0,0.00024231,2]
[311343408,1705065092037,-600.05,0.00024231,2]
[311343409,1705065092046,-1076.15,0.00024231,2]
[311343410,1705065092057,-500.0,0.00024231,2]
[311343411,1705065092066,-1891.13,0.00024231,2]
[311343412,1705065092076,-500.0,0.00024231,2]
[311343413,1705065092086,-2556.24,0.00024231,2]
[311343414,1705065092096,-750.14,0.00024231,2]
[311343415,1705065092108,-500.0,0.00024231,2]
[311343416,1705065092118,-2721.6,0.00024231,2]
[311343417,1705065092128,-500.0,0.00024231,2]
[311343418,1705065092137,-884.19,0.00024231,2]
[311343419,1705065092148,-2018.21,0.00024231,2]
[311343420,1705065092158,-2134.94,0.00024231,2]
[311343421,1705065092168,-500.0,0.00024231,2]
[311343422,1705065092177,-1493.07,0.00024231,2]
[311343423,1705065092187,-1084.3,0.00024231,2]
[311343424,1705065092197,-612.02,0.00024231,2]
[311343425,1705065092207,-500.0,0.00024231,2]
[311343426,1705065092217,-5673.19,0.00024231,2]
[311343427,1705065092227,-500.0,0.00024231,2]
[311343428,1705065092237,-1028.9,0.00024231,2]
[311343429,1705065092246,-2233.34,0.00024231,2]
[311343430,1705065092256,-710.28,0.00024231,2]
[311343431,1705065092267,-500.0,0.00024231,2]
[311343432,1705065092277,-284.84257511,0.00024234,2]
[311343433,1705065092287,-500.0,0.00024234,2]
[311343434,1705065092297,-500.0,0.00024234,2]
[311343435,1705065092307,-500.0,0.00024234,2]
[311343436,1705065092316,-500.0,0.00024234,2]
[311343437,1705065092326,-1431.33,0.00024234,2]
[311343438,1705065092336,-500.0,0.00024234,2]
[311343439,1705065092345,-500.0,0.00024234,2]
[311343440,1705065092355,-160.97479474,0.00024234,2]
[311343441,1705065092365,-500.0,0.00024234,2]
[311343442,1705065092374,-500.0,0.00024234,2]
[311343443,1705065092384,-500.0,0.00024234,2]
[311343444,1705065092453,-500.0,0.00024234,2]
[311343445,1705065092463,-500.0,0.00024234,2]
[311343446,1705065092472,-500.0,0.00024234,2]
[311343447,1705065092482,-500.0,0.00024234,2]